[Event "Haarlemse Meesters-IM 2018"]
[Site "Haarlem"]
[Date "2018.10.27"]
[Round "8"]
[White "Van Baar, Esper"]
[Black "Vedder, Richard"]
[Result "1-0"]
[ECO "C47"]
[WhiteElo "2223"]
[BlackElo "2288"]
[Annotator "NA"]
[PlyCount "107"]
[EventDate "2018.10.17"]
[EventType "tourn"]
[EventCountry "NED"]
[SourceTitle "playchess.com"]
[Source "ChessBase"]
[SourceQuality "1"]
[TimeControl "40/5400+30:1800+30"]

1. e4 {[%emt 0:00:00]} e5 {[%emt 0:00:00]} 2. Nf3 {[%emt 0:00:00]} Nc6 {[%emt 0:00:00]} 3. Nc3 {[%emt 0:00:19]} Nf6 {[%emt 0:00:12]} 4. a3 {[%emt 0:00:07]} d6 {[%emt 0:00:53]} 5. Bb5 {[%emt 0:03:40] C47: Scotch Four Knights and Four Knights with 4 g3} (5. d4 Bg4 6. dxe5 dxe5 7. Qxd8+ Rxd8 8. Bb5 Bxf3 9. gxf3 Bd6 10. Bg5 O-O 11. Bxf6 gxf6 12. Nd5 Nd4 13. Bd3 Nxf3+ {½-½ (55) Safarli,E (2639)-Anton Guijarro,D (2666) Riadh 2017}) 5... Bd7 {[%emt 0:02:59]} 6. d4 {[%emt 0:03:41]} exd4 {[%emt 0:02:22]} 7. Nxd4 {[%emt 0:00:17]} Be7 {[%emt 0:01:32]} 8. O-O {[%emt 0:00:58]} O-O {[%emt 0:00:34] LiveBook: 6 Games} 9. Nxc6 {[%emt 0:02:10]} bxc6 {[%emt 0:03:12]} 10. Bc4 {[%emt 0:02:46]} Rb8 $146 {[%emt 0:07:20]} ({Predecessor:} 10... Be6 11. Bxe6 fxe6 12. Qe2 Nd7 13. Be3 Bf6 14. Qc4 d5 15. Qxc6 d4 {1-0 (26) Just,B (1469)-Nash,C (1092) Chessfriend.com 2003}) 11. b3 {[%emt 0:05:50]} Ng4 {[%emt 0:03:43]} 12. Bb2 {[%emt 0:06:13]} Ne5 {[%emt 0:03:36]} 13. Be2 {[%emt 0:00:21]} f5 {[%emt 0:00:19]} 14. f4 {[%emt 0:08:21]} Ng6 {[%emt 0:00:17]} 15. Bh5 {[%emt 0:05:43]} (15. exf5 $14 Rxf5 16. g3) 15... Bf6 {[%emt 0:07:24]} 16. Qd3 {[%emt 0:10:29]} fxe4 {[%emt 0:04:02]} 17. Qxe4 {[%emt 0:00:09]} d5 {[%emt 0:04:05]} 18. Qd3 {[%emt 0:09:40]} Bf5 {[%emt 0:04:09]} 19. Qd2 {[%emt 0:00:13]} d4 {[%emt 0:03:35]} 20. Na4 $11 {[%emt 0:03:26]} d3 {[%emt 0:06:37]} 21. Bxf6 {[%emt 0:00:18]} Qxf6 {[%emt 0:00:03]} 22. g4 {[%emt 0:02:28]} Be4 {[%emt 0:11:40]} 23. Qe3 {[%emt 0:19:33]} Rbe8 {[%emt 0:09:50]} 24. Nc5 {[%emt 0:06:08]} Bg2 {[%emt 0:05:02]} 25. Qxd3 {[%emt 0:00:11]} Bxf1 {[%emt 0:00:05]} 26. Rxf1 {[%emt 0:00:26]} Qd6 {[%emt 0:09:31]} 27. Qc4+ {[%emt 0:02:53]} Kh8 {[%emt 0:00:10]} 28. Nd3 {[%emt 0:06:58]} Re2 {[%emt 0:06:50]} 29. g5 {[%emt 0:00:02]} Re3 {[%emt 0:00:05]} 30. Bxg6 {[%emt 0:00:57]} Qxg6 {[%emt 0:00:22]} 31. Qd4 {[%emt 0:00:40]} Re2 {[%emt 0:01:14]} 32. Qc5 {[%emt 0:00:31]} Rfe8 {[%emt 0:00:46]} 33. Ne5 {[%emt 0:00:30]} Qh5 {[%emt 0:00:08]} 34. Rf2 {[%emt 0:00:24]} Rxf2 {[%emt 0:00:53]} 35. Qxf2 {[%emt 0:00:14]} Qd1+ {[%emt 0:00:39]} 36. Kg2 {[%emt 0:00:10]} Qd5+ {[%emt 0:00:05]} 37. Kg3 {[%emt 0:00:35]} c5 {[%emt 0:00:50]} 38. Qe2 {[%emt 0:00:38]} Kg8 {[%emt 0:00:43]} 39. a4 {[%emt 0:00:52]} Rd8 {[%emt 0:01:09]} 40. Qg4 {[%emt 0:00:20]} Qd6 {[%emt 0:01:38]} 41. Qf5 {[%emt 0:01:39]} Rf8 {[%emt 0:01:18]} 42. Qg4 {[%emt 0:02:39]} Re8 {[%emt 0:00:15]} 43. Qf5 {[%emt 0:02:50]} Qd5 {[%emt 0:01:37]} 44. h4 {[%emt 0:02:05]} Qe6 {[%emt 0:07:12]} 45. Qd3 {[%emt 0:04:56]} h5 {[%emt 0:02:31]} 46. g6 {[%emt 0:04:00]} c6 {[%emt 0:02:25]} 47. Qf3 {[%emt 0:01:32]} Rd8 {[%emt 0:05:43]} 48. Qxh5 {[%emt 0:01:04]} Rd2 {[%emt 0:00:15]} 49. Qh7+ {[%emt 0:02:17]} Kf8 {[%emt 0:00:02]} 50. h5 {[%emt 0:01:49]} Qd5 {[%emt 0:00:59]} 51. Nf3 {[%emt 0:04:25]} Rxc2 {[%emt 0:00:44]} 52. h6 {[%emt 0:00:25]} Qg8 {[%emt 0:00:29]} 53. Qxg8+ {[%emt 0:01:14]} Kxg8 {[%emt 0:00:05]} 54. h7+ {[%emt 0:00:04]} 1-0

[Event "Haarlemse Meesters-IM 2018"]
[Site "Haarlem"]
[Date "2018.10.28"]
[Round "9"]
[White "Daeschler, Florian"]
[Black "Van Baar, Esper"]
[Result "1/2-1/2"]
[ECO "E62"]
[WhiteElo "2254"]
[BlackElo "2223"]
[Annotator "NA RC"]
[PlyCount "45"]
[EventDate "2018.10.17"]
[EventType "tourn"]
[EventCountry "NED"]
[SourceTitle "playchess.com"]
[Source "ChessBase"]
[SourceQuality "1"]
[TimeControl "40/5400+30:1800+30"]

1. d4 {[%emt 0:00:00]} d6 {[%emt 0:01:19]} 2. Nf3 {[%emt 0:00:00]} Nf6 {[%emt 0:00:40]} 3. g3 {[%emt 0:00:00]} g6 {[%emt 0:00:09]} 4. Bg2 {[%emt 0:00:00]} Bg7 {[%emt 0:00:08]} 5. c4 {[%emt 0:00:11]} O-O {[%emt 0:00:42]} 6. Nc3 {[%emt 0:00:05]} c6 {[%emt 0:01:41]} 7. O-O {[%emt 0:00:08]} Bf5 {[%emt 0:00:58]} 8. b3 {[%emt 0:07:13]} Ne4 {[%emt 0:01:23]} 9. Bb2 {[%emt 0:00:07]} Nxc3 {[%emt 0:04:51]} 10. Bxc3 {[%emt 0:00:21]} Be4 {[%emt 0:00:38]} 11. Rc1 {[%emt 0:04:25]} d5 {[%emt 0:06:37]} 12. Qd2 {[%emt 0:04:30] LiveBook: 13 Games E62: King's Indian: Fianchetto: 6...c6 and Panno Variation (6...Nc6) without ...a6} Nd7 {[%emt 0:03:48]} 13. cxd5 {[%emt 0:00:26] [#]} (13. Rfd1 e6 14. e3 Re8 15. Qe2 Qe7 {½-½ (15) Predojevic,B (2652)-Jankovic,A (2575) Bihac 2016}) 13... cxd5 $146 {[%emt 0:00:28]} ({Predecessor:} 13... Bxd5 14. Ba5 b6 15. Bc3 Nf6 16. Rfd1 Rc8 17. Bb2 Rc7 18. Ne5 Bxg2 19. Kxg2 Qa8 20. Qf4 {½-½ (32) Zueger,B (2465)-Hort,V (2550) Prague 1996}) 14. Ba5 {[%emt 0:05:27]} b6 {[%emt 0:01:28]} 15. Bb4 {[%emt 0:00:04]} a5 {[%emt 0:02:44]} 16. Ba3 {[%emt 0:00:05]} b5 {[%emt 0:01:28]} 17. Bc5 {[%emt 0:07:15]} Re8 {[%emt 0:07:06]} 18. Ne1 $11 {[%emt 0:03:43]} Bxg2 {[%emt 0:02:02]} 19. Kxg2 {[%emt 0:03:28]} Rc8 {[%emt 0:06:30]} 20. Nd3 {[%emt 0:03:03]} Nf8 {[%emt 0:28:47]} 21. a3 {[%emt 0:09:50]} Ne6 {[%emt 0:00:23]} 22. e3 {[%emt 0:00:55]} Ng5 {[%emt 0:04:29]} 23. f3 {[%emt 0:03:30]} 1/2-1/2